fUST/lending_fUST_20250628
["ID","MTS","AMOUNT","RATE_DAILY","PERIOD"]
[368299502,1751100646941,-248.4,0.00021359,2]
[368299503,1751100646950,-160.0,0.00021359,2]
[368299504,1751100646959,-160.0,0.00021359,2]
[368299505,1751100646969,-160.0,0.00021359,2]
[368299506,1751100646977,-500.0,0.00021359,2]
[368299507,1751100646987,-160.0,0.00021359,2]
[368299508,1751100646996,-500.0,0.00021359,2]
[368299509,1751100647005,-500.0,0.00021359,2]
[368299510,1751100647014,-160.0,0.00021359,2]
[368299511,1751100647023,-160.0,0.00021359,2]
[368299512,1751100647032,-160.0,0.00021359,2]
[368299513,1751100647041,-2000.0,0.00021366,2]
[368299514,1751100647050,-460.0,0.00021369,2]
[368299515,1751100647059,-500.0,0.00021369,16]
[368299516,1751100647069,-460.0,0.00021369,2]
[368299517,1751100647078,-151.237257,0.00021369,2]
[368299518,1751100647088,-151.0,0.00021369,2]
[368299519,1751100647097,-460.0,0.00021369,2]
[368299520,1751100647106,-1505.99302,0.00021369,2]
[368299521,1751100647115,-1386.5,0.00021369,2]
[368299522,1751100647125,-151.0,0.00021369,2]
[368299523,1751100647134,-151.0,0.00021369,2]
[368299524,1751100647143,-155.6612,0.00021369,2]
[368299525,1751100647152,-460.0,0.00021369,2]
[368299526,1751100647161,-460.0,0.00021369,2]
[368299527,1751100647171,-591.39,0.00021369,2]
[368299528,1751100647180,-460.0,0.00021369,2]
[368299529,1751100647189,-460.0,0.00021369,2]
[368299530,1751100647204,-204.73204089,0.00021369,2]
[368299531,1751100647220,-977.48,0.00021369,2]
[368299532,1751100647234,-699.042723,0.00021369,2]
[368299533,1751100647247,-699.042723,0.00021369,2]
[368299534,1751100647262,-539.88581029,0.00021369,2]
[368299535,1751100647277,-335.751344,0.00021369,2]
[368299536,1751100647293,-335.751344,0.00021369,2]
[368299537,1751100647307,-460.0,0.00021369,2]
[368299538,1751100647323,-151.0,0.00021369,2]
[368299539,1751100647335,-164.961058,0.00021369,2]
[368299540,1751100647349,-164.961058,0.00021369,2]
[368299541,1751100647361,-1544.88,0.00021369,2]
[368299542,1751100647377,-1093.87,0.00021369,2]
[368299543,1751100647390,-1697.86,0.00021369,2]
[368299544,1751100647402,-460.0,0.00021369,2]
[368299545,1751100647414,-1747.34,0.00021369,2]
[368299546,1751100647427,-460.0,0.00021369,2]
[368299547,1751100647441,-1159.51,0.00021369,2]
[368299548,1751100647455,-862.57,0.00021369,2]
[368299549,1751100647470,-460.0,0.00021369,2]
[368299550,1751100647484,-461.77,0.00021369,2]
[368299551,1751100647499,-3084.43,0.00021369,2]
[368299552,1751100647510,-2476.82,0.00021369,2]
[368299553,1751100647520,-1223.39,0.00021369,2]
[368299554,1751100647533,-460.0,0.00021369,2]
[368299555,1751100647548,-739.08,0.00021369,2]
[368299556,1751100647561,-656.69,0.00021369,2]
[368299557,1751100647573,-2386.21,0.00021369,2]
[368299558,1751100647585,-746.77,0.00021369,2]
[368299559,1751100647598,-460.0,0.00021369,2]
[368299560,1751100647609,-738.23,0.00021369,2]
[368299561,1751100647621,-460.0,0.00021369,2]
[368299562,1751100647633,-460.0,0.00021369,2]
[368299563,1751100647645,-460.0,0.00021369,2]
[368299564,1751100647657,-563.92,0.00021369,2]
[368299565,1751100647669,-711.07,0.00021369,2]
[368299566,1751100647682,-503.69,0.00021369,2]
[368299567,1751100647694,-868.94,0.00021369,2]
[368299568,1751100647706,-151.0,0.00021369,2]
[368299569,1751100647718,-3105.15,0.00021369,2]
[368299570,1751100647731,-151.0,0.00021369,2]
[368299571,1751100647745,-518.0,0.00021369,2]
[368299572,1751100647757,-556.19,0.00021369,2]
[368299573,1751100647769,-151.0,0.00021369,2]
[368299574,1751100647781,-1208.1,0.00021369,2]
[368299575,1751100647794,-3835.4,0.00021369,2]
[368299576,1751100647806,-3094.67,0.00021369,2]
[368299577,1751100647818,-460.0,0.00021369,2]
[368299578,1751100647830,-460.0,0.00021369,2]
[368299579,1751100647842,-750.08,0.00021369,2]
[368299580,1751100647853,-2380.9,0.00021369,2]
[368299581,1751100647865,-460.0,0.00021369,2]
[368299582,1751100647877,-590.21,0.00021369,2]
[368299583,1751100647889,-4278.54,0.00021369,2]
[368299584,1751100647901,-569.58,0.00021369,2]
[368299585,1751100647913,-587.62,0.00021369,2]
[368299586,1751100647925,-2589.18,0.00021369,2]
[368299587,1751100647937,-189.652664,0.00021369,2]
[368299588,1751100647950,-1943.91,0.00021369,2]
[368299589,1751100647963,-460.0,0.00021369,2]
[368299590,1751100647976,-152.39962,0.00021369,2]
[368299591,1751100647987,-189.652664,0.00021369,2]
[368299592,1751100648000,-518.96,0.00021369,2]
[368299593,1751100648012,-1351.92,0.00021369,2]
[368299594,1751100648025,-1275.78,0.00021369,2]
[368299595,1751100648037,-460.0,0.00021369,2]
[368299596,1751100648049,-681.64,0.00021369,2]
[368299597,1751100648063,-460.0,0.00021369,2]
[368299598,1751100648075,-1887.23,0.00021369,2]
[368299599,1751100648088,-151.0,0.00021369,2]
[368299600,1751100648100,-6146.34,0.00021369,2]
[368299601,1751100648112,-699.47,0.00021369,2]
[368299602,1751100648125,-602.11,0.00021369,2]
[368299603,1751100648138,-760.666322,0.00021369,2]
[368299604,1751100648151,-797.62,0.00021369,2]
[368299605,1751100648164,-760.666322,0.00021369,2]
[368299606,1751100648178,-460.0,0.00021369,2]
[368299607,1751100648191,-937.19,0.00021369,2]
[368299608,1751100648203,-849.38,0.00021369,2]
[368299609,1751100648216,-460.0,0.00021369,2]
[368299610,1751100648229,-160.0,0.00021377,2]
[368299611,1751100648242,-500.0,0.00021377,2]
[368299612,1751100648254,-160.0,0.00021377,2]
[368299613,1751100648266,-2000.0,0.00021381,2]
[368299614,1751100648279,-5000.0,0.00021391,2]
[368299615,1751100648291,-25000.0,0.00021391,2]
[368299616,1751100648304,-957.77124259,0.00021393,2]
[368299617,1751100648317,-151.0,0.000214,4]
[368299618,1751100648330,-151.0,0.000214,4]
[368299619,1751100648343,-993.20877856,0.00021448,2]
[368299620,1751100648357,-244.33695894,0.00021452,2]
[368299621,1751100648369,-160.0,0.00021457,2]
[368299622,1751100648378,-500.0,0.00021457,2]
[368299623,1751100648387,-500.0,0.00021457,2]
[368299624,1751100648550,-501.47258747,0.00021457,2]
[368299625,1751100648573,-500.0,0.00021457,2]
[368299626,1751100648582,-563.71744148,0.00021457,2]
[368299627,1751100648591,-501.12105409,0.00021457,2]
[368299628,1751100648601,-160.0,0.00021457,2]
[368299629,1751100648610,-500.0,0.00021457,2]
[368299630,1751100648620,-500.0,0.00021457,2]
[368299631,1751100648630,-500.0,0.00021457,2]
[368299632,1751100648639,-500.0,0.00021457,2]
[368299633,1751100648649,-500.0,0.00021457,2]
[368299634,1751100648658,-151.0,0.00021473,2]
[368299635,1751100648667,-151.0,0.00021473,2]
[368299636,1751100648676,-422.0,0.00021473,2]
[368299637,1751100648686,-250.61579484,0.00021479,2]
[368299638,1751100648695,-500.0,0.00021479,2]
[368299639,1751100648704,-160.0,0.00021479,2]
[368299640,1751100648713,-160.0,0.00021479,2]
[368299641,1751100648724,-500.0,0.00021479,2]
[368299642,1751100648733,-500.0,0.00021479,2]
[368299643,1751100648742,-160.0,0.00021479,2]
[368299644,1751100648752,-258.4,0.00021479,2]
[368299645,1751100648761,-500.0,0.00021479,2]
[368299646,1751100648770,-500.0,0.00021479,2]
[368299647,1751100648779,-160.0,0.00021479,2]
[368299648,1751100648789,-1029.95750337,0.00021503,2]
[368299649,1751100648798,-157.07375932,0.00021507,2]
[368299650,1751100648808,-212.9,0.00021528,4]
[368299651,1751100648817,-295809.77123221,0.00021554,2]
[368299652,1751100648988,-460.0,0.00020273,2]
[368299653,1751100648999,-500.0,0.00020843,2]
[368299654,1751100649009,-72968.46703736,0.00021554,2]
[368299655,1751100649396,-460.0,0.00019178,2]
[368299656,1751100649406,-460.0,0.00019178,2]
[368299657,1751100649415,-460.0,0.00019178,2]
[368299658,1751100649424,-58.43779679,0.00019178,2]
[368299659,1751100649436,-401.56220321,0.00019178,2]
[368299660,1751100649445,-460.0,0.00019452,2]
[368299661,1751100649454,-113.02239329,0.00019452,2]
[368299662,1751100649470,-346.97760671,0.00019452,2]
[368299663,1751100649480,-460.0,0.00019452,2]
[368299664,1751100649490,-460.0,0.00019726,2]
[368299665,1751100649499,-460.0,0.00019726,2]
[368299666,1751100649510,-460.0,0.00019726,2]
[368299667,1751100649519,-460.0,0.0002,2]
[368299668,1751100649528,-460.0,0.0002,2]
[368299669,1751100649537,-427.84153915,0.0002,2]
[368299670,1751100649546,-460.0,0.00020273,2]
[368299671,1751100649555,-460.0,0.00020273,2]
[368299672,1751100649564,-460.0,0.00020547,2]
[368299673,1751100649573,-460.0,0.00020547,2]
[368299674,1751100649583,-460.0,0.00020821,2]
[368299675,1751100649592,-460.0,0.00020821,2]
[368299676,1751100649602,-500.0,0.00020843,2]
[368299677,1751100649611,-175.04864089,0.00020843,2]
[368299678,1751100649621,-460.0,0.00021095,2]
[368299679,1751100649630,-494.71,0.00021095,2]
[368299680,1751100649639,-460.0,0.00021369,2]
[368299681,1751100649649,-559878.03486043,0.00021554,2]
[368299682,1751100649659,-10618.2214724,0.00021555,5]
[368299683,1751100649669,-1068.065931,0.00021558,2]
[368299684,1751100649678,-244.33695894,0.00021562,2]
[368299685,1751100649687,-151.0,0.00021566,2]
[368299686,1751100649697,-314.17372,0.00021585,2]
[368299687,1751100649706,-161.296516,0.00021585,2]
[368299688,1751100649715,-314.17372,0.00021585,2]
[368299689,1751100649725,-360.239536,0.00021585,2]
[368299690,1751100649737,-360.239536,0.00021585,2]
[368299691,1751100649746,-160.0,0.00021585,2]
[368299692,1751100649755,-160.0,0.00021585,2]
[368299693,1751100649765,-160.0,0.00021585,2]
[368299694,1751100649775,-160.0,0.00021585,2]
[368299695,1751100649784,-160.0,0.00021585,2]
[368299696,1751100649793,-500.0,0.00021585,2]
[368299697,1751100649803,-160.0,0.00021609,2]
[368299698,1751100649814,-160.0,0.00021609,2]
[368299699,1751100649824,-160.0,0.00021609,2]
[368299700,1751100649833,-1107.58437044,0.00021613,2]
[368299701,1751100649842,-500.0,0.0002162,2]
[368299702,1751100649851,-587.0,0.00021628,2]
[368299703,1751100649861,-213.78848551,0.0002164,10]
[368299704,1751100649870,-151.0,0.0002164,2]
[368299705,1751100649879,-151.0,0.0002164,2]
[368299706,1751100649888,-151.0,0.0002164,2]
[368299707,1751100649898,-189.652664,0.0002164,2]
[368299708,1751100649907,-189.652664,0.0002164,2]
[368299709,1751100649916,-760.666322,0.0002164,2]
[368299710,1751100649926,-760.666322,0.0002164,2]
[368299711,1751100649935,-460.0,0.00021643,2]
[368299712,1751100649944,-460.0,0.00021643,2]
[368299713,1751100649953,-151.0,0.00021643,2]
[368299714,1751100649962,-151.0,0.00021643,2]
[368299715,1751100649972,-460.0,0.00021643,2]
[368299716,1751100649981,-151.0,0.00021643,2]
[368299717,1751100649990,-151.0,0.00021643,2]
[368299718,1751100650000,-151.0,0.00021643,2]
[368299719,1751100650010,-1386.5,0.00021643,2]
[368299720,1751100650019,-274.989413,0.00021643,2]
[368299721,1751100650028,-275.174466,0.00021643,2]
[368299722,1751100650038,-275.174466,0.00021643,2]
[368299723,1751100650048,-274.989413,0.00021643,2]
[368299724,1751100650058,-151.0,0.00021643,2]
[368299725,1751100650068,-151.0,0.00021643,2]
[368299726,1751100650077,-460.0,0.00021643,2]
[368299727,1751100650086,-460.0,0.00021643,2]
[368299728,1751100650096,-591.39,0.00021643,2]
[368299729,1751100650105,-460.0,0.00021643,2]
[368299730,1751100650114,-151.0,0.00021643,2]
[368299731,1751100650125,-414.928889,0.00021643,2]
[368299732,1751100650134,-460.0,0.00021643,2]
[368299733,1751100650143,-414.928889,0.00021643,2]
[368299734,1751100650153,-977.48,0.00021643,2]
[368299735,1751100650163,-151.0,0.00021643,2]
[368299736,1751100650172,-151.0,0.00021643,2]
[368299737,1751100650181,-151.0,0.00021643,2]
[368299738,1751100650190,-699.042723,0.00021643,2]
[368299739,1751100650200,-699.042723,0.00021643,2]
[368299740,1751100650209,-335.751344,0.00021643,2]
[368299741,1751100650219,-335.751344,0.00021643,2]
[368299742,1751100650228,-460.0,0.00021643,2]
[368299743,1751100650237,-239.445738,0.00021643,2]
[368299744,1751100650247,-151.0,0.00021643,2]
[368299745,1751100650256,-239.445738,0.00021643,2]
[368299746,1751100650266,-498.787082,0.00021643,2]
[368299747,1751100650275,-498.787082,0.00021643,2]
[368299748,1751100650285,-164.961058,0.00021643,2]
[368299749,1751100650295,-164.961058,0.00021643,2]
[368299750,1751100650304,-151.0,0.00021643,2]
[368299751,1751100650314,-1088.98110876,0.00021643,2]
[368299752,1751100650323,-1093.87,0.00021643,2]
[368299753,1751100650332,-1697.86,0.00021643,2]
[368299754,1751100650341,-438.28632599,0.00021643,2]
[368299755,1751100650350,-270.912891,0.00021643,2]
[368299756,1751100650359,-1747.34,0.00021643,2]
[368299757,1751100650369,-270.912891,0.00021643,2]
[368299758,1751100650378,-1159.51,0.00021643,2]
[368299759,1751100650387,-862.57,0.00021643,2]
[368299760,1751100650396,-460.0,0.00021643,2]
[368299761,1751100650406,-461.77,0.00021643,2]
[368299762,1751100650415,-3084.43,0.00021643,2]
[368299763,1751100650424,-151.0,0.00021643,2]
[368299764,1751100650433,-2476.82,0.00021643,2]
[368299765,1751100650442,-1223.39,0.00021643,2]
[368299766,1751100650451,-411.83573595,0.00021643,2]
[368299767,1751100650461,-739.08,0.00021643,2]
[368299768,1751100650470,-656.69,0.00021643,2]
[368299769,1751100650479,-2386.21,0.00021643,2]
[368299770,1751100650488,-746.77,0.00021643,2]
[368299771,1751100650498,-460.0,0.00021643,2]
[368299772,1751100650507,-738.23,0.00021643,2]
[368299773,1751100650516,-460.0,0.00021643,2]
[368299774,1751100650525,-460.0,0.00021643,2]
[368299775,1751100650535,-460.0,0.00021643,2]
[368299776,1751100650544,-563.92,0.00021643,2]
[368299777,1751100650554,-711.07,0.00021643,2]
[368299778,1751100650563,-503.69,0.00021643,2]
[368299779,1751100650572,-868.94,0.00021643,2]
[368299780,1751100650581,-3105.15,0.00021643,2]
[368299781,1751100650590,-518.0,0.00021643,2]
[368299782,1751100650599,-556.19,0.00021643,2]
[368299783,1751100650609,-1208.1,0.00021643,2]
[368299784,1751100650618,-3835.4,0.00021643,2]
[368299785,1751100650627,-3094.67,0.00021643,2]
[368299786,1751100650637,-460.0,0.00021643,2]
[368299787,1751100650646,-460.0,0.00021643,2]
[368299788,1751100650655,-750.08,0.00021643,2]
[368299789,1751100650664,-2380.9,0.00021643,2]
[368299790,1751100650673,-460.0,0.00021643,2]
[368299791,1751100650682,-590.21,0.00021643,2]
[368299792,1751100650691,-4278.54,0.00021643,2]
[368299793,1751100650700,-569.58,0.00021643,2]
[368299794,1751100650709,-587.62,0.00021643,2]
[368299795,1751100650719,-2589.18,0.00021643,2]
[368299796,1751100650728,-1943.91,0.00021643,2]
[368299797,1751100650739,-460.0,0.00021643,2]
[368299798,1751100650748,-518.96,0.00021643,2]
[368299799,1751100650759,-1351.92,0.00021643,2]
[368299800,1751100650767,-1275.78,0.00021643,2]
[368299801,1751100650776,-460.0,0.00021643,2]
[368299802,1751100650786,-681.64,0.00021643,2]
[368299803,1751100650795,-460.0,0.00021643,2]
[368299804,1751100650805,-1887.23,0.00021643,2]
[368299805,1751100650815,-6146.34,0.00021643,2]
[368299806,1751100650824,-699.47,0.00021643,2]
[368299807,1751100650833,-602.11,0.00021643,2]
[368299808,1751100650843,-797.62,0.00021643,2]
[368299809,1751100650853,-460.0,0.00021643,2]
[368299810,1751100650862,-937.19,0.00021643,2]
[368299811,1751100650872,-849.38,0.00021643,2]
[368299812,1751100650881,-460.0,0.00021643,2]
[368299813,1751100650890,-460.0,0.00021643,2]
[368299814,1751100650900,-244.33695894,0.00021644,2]
[368299815,1751100650909,-300.0,0.00021647,2]
[368299816,1751100650918,-1148.56499215,0.00021668,2]
[368299817,1751100651046,-155.608738,0.00021671,2]
[368299818,1751100651058,-200.0,0.0002168,2]
[368299819,1751100651068,-157.07375932,0.00021699,2]
[368299820,1751100651078,-847.18566335,0.000217,10]
[368299821,1751100651087,-12564.78152626,0.000217,10]
[368299822,1751100651096,-168.0,0.00021709,2]
[368299823,1751100651106,-244.33695894,0.00021753,2]
[368299824,1751100651115,-151.0,0.00021762,2]
[368299825,1751100651125,-1505.99302,0.00021762,2]
[368299826,1751100651134,-212.9,0.00021762,4]
[368299827,1751100651143,-10618.2214724,0.00021762,5]
[368299828,1751100651153,-168.0,0.00021771,2]
[368299829,1751100651162,-422.0,0.00021776,2]
[368299830,1751100651172,-500.0,0.0002178,17]
[368299831,1751100651181,-3000.0,0.000218,2]
[368299832,1751100651191,-3000.0,0.0002181,2]
[368299833,1751100651200,-4807.20385611,0.00021817,2]
[368299834,1751100651211,-3000.0,0.0002182,2]
[368299835,1751100651220,-3000.0,0.0002183,2]
[368299836,1751100651229,-3000.0,0.0002184,2]
[368299837,1751100651238,-3000.0,0.0002185,2]
[368299838,1751100651248,-176.797928,0.0002185,2]
[368299839,1751100651257,-3000.0,0.0002186,2]
[368299840,1751100651266,-244.33695894,0.00021863,2]
[368299841,1751100651276,-168.0,0.00021867,2]
[368299842,1751100651285,-3000.0,0.0002187,2]
[368299843,1751100651295,-620.40447539,0.00021889,2]
[368299844,1751100651304,-157.07375932,0.0002189,2]
[368299845,1751100651314,-306.0,0.0002189,2]
[368299846,1751100651323,-575.2177202,0.0002189,2]
[368299847,1751100651333,-306.0,0.0002189,2]
[368299848,1751100651342,-1000.0,0.00021898,2]
[368299849,1751100651351,-2780.28,0.000219,2]
[368299850,1751100651360,-10000.0,0.000219,15]
[368299851,1751100651369,-152.082159,0.000219,2]
[368299852,1751100651380,-151.0,0.000219,2]
[368299853,1751100651389,-3797.86,0.000219,2]
[368299854,1751100651399,-314.17372,0.000219,2]
[368299855,1751100651409,-314.17372,0.000219,2]
[368299856,1751100651419,-360.239536,0.000219,2]
[368299857,1751100651428,-360.239536,0.000219,2]
[368299858,1751100651438,-533.35382285,0.00021907,2]
[368299859,1751100651447,-502.71747026,0.00021907,2]
[368299860,1751100651456,-501.43460765,0.00021907,2]
[368299861,1751100651465,-1000.0,0.00021907,2]
[368299862,1751100651474,-1000.0,0.00021907,2]
[368299863,1751100651484,-501.1311395,0.00021907,2]
[368299864,1751100651493,-501.21430314,0.00021907,2]
[368299865,1751100651503,-1200.0,0.00021907,2]
[368299866,1751100651512,-1000.0,0.00021907,2]
[368299867,1751100651521,-1000.0,0.00021907,2]
[368299868,1751100651530,-1001.44840289,0.00021907,2]
[368299869,1751100651540,-1000.0,0.00021907,2]
[368299870,1751100651549,-501.49161915,0.00021907,2]
[368299871,1751100651558,-501.21778933,0.00021907,2]
[368299872,1751100651567,-2500.0,0.00021914,2]
[368299873,1751100651578,-151.0,0.00021917,2]
[368299874,1751100651588,-151.0,0.00021917,2]
[368299875,1751100651598,-151.0,0.00021917,2]
[368299876,1751100651608,-460.0,0.00021917,2]
[368299877,1751100651618,-151.0,0.00021917,2]
[368299878,1751100651627,-202.063746,0.00021917,2]
[368299879,1751100651636,-154.598789,0.00021917,2]
[368299880,1751100651645,-460.0,0.00021917,2]
[368299881,1751100651654,-460.0,0.00021917,2]
[368299882,1751100651663,-151.0,0.00021917,2]
[368299883,1751100651672,-151.0,0.00021917,2]
[368299884,1751100651681,-151.0,0.00021917,2]
[368299885,1751100651690,-1386.5,0.00021917,2]
[368299886,1751100651699,-460.0,0.00021917,2]
[368299887,1751100651709,-460.0,0.00021917,2]
[368299888,1751100651719,-591.39,0.00021917,2]
[368299889,1751100651730,-460.0,0.00021917,2]
[368299890,1751100651745,-151.0,0.00021917,2]
[368299891,1751100651756,-460.0,0.00021917,2]
[368299892,1751100651767,-977.48,0.00021917,2]
[368299893,1751100651777,-151.0,0.00021917,2]
[368299894,1751100651786,-151.0,0.00021917,2]
[368299895,1751100651795,-151.0,0.00021917,2]
[368299896,1751100651804,-460.0,0.00021917,2]
[368299897,1751100651814,-239.445738,0.00021917,2]
[368299898,1751100651824,-239.445738,0.00021917,2]
[368299899,1751100651833,-498.787082,0.00021917,2]
[368299900,1751100651842,-498.787082,0.00021917,2]
[368299901,1751100651851,-151.0,0.00021917,2]
[368299902,1751100651860,-1093.87,0.00021917,2]
[368299903,1751100651869,-1697.86,0.00021917,2]
[368299904,1751100651878,-270.912891,0.00021917,2]
[368299905,1751100651887,-1747.34,0.00021917,2]
[368299906,1751100651896,-270.912891,0.00021917,2]
[368299907,1751100651906,-1159.51,0.00021917,2]
[368299908,1751100651917,-862.57,0.00021917,2]
[368299909,1751100651927,-460.0,0.00021917,2]
[368299910,1751100651936,-461.77,0.00021917,2]
[368299911,1751100651946,-3084.43,0.00021917,2]
[368299912,1751100651956,-151.0,0.00021917,2]
[368299913,1751100651966,-2476.82,0.00021917,2]
[368299914,1751100651975,-1223.39,0.00021917,2]
[368299915,1751100651984,-739.08,0.00021917,2]
[368299916,1751100651993,-656.69,0.00021917,2]
[368299917,1751100652002,-2386.21,0.00021917,2]
[368299918,1751100652012,-746.77,0.00021917,2]
[368299919,1751100652021,-460.0,0.00021917,2]
[368299920,1751100652030,-738.23,0.00021917,2]
[368299921,1751100652039,-275.43851885,0.00021917,2]
[368299922,1751100652049,-460.0,0.00021917,2]
[368299923,1751100652059,-460.0,0.00021917,2]
[368299924,1751100652068,-563.92,0.00021917,2]
[368299925,1751100652076,-711.07,0.00021917,2]
[368299926,1751100652086,-503.69,0.00021917,2]
[368299927,1751100652095,-868.94,0.00021917,2]
[368299928,1751100652104,-151.0,0.00021917,2]
[368299929,1751100652112,-3105.15,0.00021917,2]
[368299930,1751100652122,-151.0,0.00021917,2]
[368299931,1751100652131,-518.0,0.00021917,2]
[368299932,1751100652140,-556.19,0.00021917,2]
[368299933,1751100652149,-151.0,0.00021917,2]
[368299934,1751100652160,-1208.1,0.00021917,2]
[368299935,1751100652169,-3835.4,0.00021917,2]
[368299936,1751100652179,-3094.67,0.00021917,2]
[368299937,1751100652188,-460.0,0.00021917,2]
[368299938,1751100652197,-460.0,0.00021917,2]
[368299939,1751100652206,-750.08,0.00021917,2]
[368299940,1751100652215,-2380.9,0.00021917,2]
[368299941,1751100652224,-460.0,0.00021917,2]
[368299942,1751100652234,-590.21,0.00021917,2]
[368299943,1751100652243,-4278.54,0.00021917,2]
[368299944,1751100652252,-569.58,0.00021917,2]
[368299945,1751100652261,-587.62,0.00021917,2]
[368299946,1751100652270,-2589.18,0.00021917,2]
[368299947,1751100652279,-189.652664,0.00021917,2]
[368299948,1751100652288,-1943.91,0.00021917,2]
[368299949,1751100652298,-460.0,0.00021917,2]
[368299950,1751100652307,-189.652664,0.00021917,2]
[368299951,1751100652316,-518.96,0.00021917,2]
[368299952,1751100652325,-1351.92,0.00021917,2]
[368299953,1751100652334,-1275.78,0.00021917,2]
[368299954,1751100652342,-460.0,0.00021917,2]
[368299955,1751100652351,-681.64,0.00021917,2]
[368299956,1751100652360,-411.05638163,0.00021917,2]
[368299957,1751100652369,-1887.23,0.00021917,2]
[368299958,1751100652378,-151.0,0.00021917,2]
[368299959,1751100652387,-6146.34,0.00021917,2]
[368299960,1751100652396,-699.47,0.00021917,2]
[368299961,1751100652405,-602.11,0.00021917,2]
[368299962,1751100652414,-760.666322,0.00021917,2]
[368299963,1751100652425,-760.666322,0.00021917,2]
[368299964,1751100652434,-797.62,0.00021917,2]
[368299965,1751100652444,-460.0,0.00021917,2]
[368299966,1751100652453,-937.19,0.00021917,2]
[368299967,1751100652462,-849.38,0.00021917,2]
[368299968,1751100652471,-460.0,0.00021917,2]
[368299969,1751100652480,-460.0,0.00021917,2]
[368299970,1751100652489,-1150.4354404,0.00021918,2]
[368299971,1751100652498,-151.0,0.00021918,2]
[368299972,1751100652508,-151.0,0.00021918,2]
[368299973,1751100652517,-151.0,0.00021918,2]
[368299974,1751100652526,-151.0,0.00021918,2]
[368299975,1751100652535,-237.13056107,0.00021918,2]
[368299976,1751100652544,-968.174,0.00021931,2]
[368299977,1751100652553,-654.0,0.00021931,2]
[368299978,1751100652562,-2161.0,0.00021931,2]
[368299979,1751100652572,-152.636,0.00021931,2]
[368299980,1751100652581,-5000.0,0.00021939,2]
[368299981,1751100652590,-25000.0,0.00021939,2]
[368299982,1751100652599,-10618.2214724,0.00021969,6]
[368299983,1751100652608,-213.731,0.00021971,2]
[368299984,1751100652617,-249.539,0.00021971,2]
[368299985,1751100652627,-195.688,0.00021971,2]
[368299986,1751100652636,-259.047,0.00021971,2]
[368299987,1751100652645,-217.077,0.00021971,2]
[368299988,1751100652655,-244.33695894,0.00021973,2]
[368299989,1751100652664,-212.9,0.00021995,4]
[368299990,1751100652673,-171205.2184793,0.00022,2]
[368299991,1751100652688,-42808.24205917,0.00022,2]
[368299992,1751100652699,-20585.33481777,0.00022,2]
[368299993,1751100653079,-460.0,0.00019178,2]
[368299994,1751100653088,-460.0,0.00019178,2]
[368299995,1751100653097,-460.0,0.00019178,2]
[368299996,1751100653107,-460.0,0.00019178,2]
[368299997,1751100653116,-460.0,0.00019178,2]
[368299998,1751100653125,-200.281,0.00019452,2]
[368299999,1751100653146,-259.719,0.00019452,2]
[368300000,1751100653155,-460.0,0.00019452,2]
[368300001,1751100653164,-460.0,0.00019452,2]